fUSD/lending_fUSD_20250308
["ID","MTS","AMOUNT","RATE_DAILY","PERIOD"]
[355634378,1741415458035,-1243.68,8.493e-05,2]
[355634379,1741415458044,-5016.87,8.493e-05,2]
[355634380,1741415458055,-1108.05,8.493e-05,2]
[355634381,1741415458064,-8291.89,8.493e-05,2]
[355634382,1741415458074,-2714.76204005,8.493e-05,2]
[355634383,1741415458089,-1150.28795995,8.493e-05,2]
[355634384,1741415458099,-1286.43,8.493e-05,2]
[355634385,1741415458108,-500.0,8.493e-05,2]
[355634386,1741415458118,-916.37,8.493e-05,2]
[355634387,1741415458130,-1058.14,8.493e-05,2]
[355634388,1741415458140,-1552.03,8.493e-05,2]
[355634389,1741415458149,-500.0,8.493e-05,2]
[355634390,1741415458159,-1621.91,8.493e-05,2]
[355634391,1741415458169,-4886.26,8.493e-05,2]
[355634392,1741415458178,-2837.02,8.493e-05,2]
[355634393,1741415458188,-13160.23,8.493e-05,2]
[355634394,1741415458197,-2559.69,8.493e-05,2]
[355634395,1741415458208,-4878.92,8.493e-05,2]
[355634396,1741415458218,-500.0,8.493e-05,2]
[355634397,1741415458227,-803.58,8.493e-05,2]
[355634398,1741415458236,-500.0,8.493e-05,2]
[355634399,1741415458246,-3088.87,8.493e-05,2]
[355634400,1741415458255,-994.91,8.493e-05,2]
[355634401,1741415458264,-3202.27,8.493e-05,2]
[355634402,1741415458274,-9737.72,8.493e-05,2]
[355634403,1741415458283,-459.75588469,8.493e-05,2]
[355634404,1741415458292,-2300.03,8.493e-05,2]
[355634405,1741415458302,-3354.73,8.493e-05,2]
[355634406,1741415458311,-5722.7,8.493e-05,2]
[355634407,1741415458320,-2241.48,8.493e-05,2]
[355634408,1741415458329,-500.0,8.493e-05,2]
[355634409,1741415458339,-4631.7,8.493e-05,2]
[355634410,1741415458348,-500.0,8.493e-05,2]
[355634411,1741415458358,-500.0,8.493e-05,2]
[355634412,1741415458367,-1970.27,8.493e-05,2]
[355634413,1741415458376,-3534.82,8.493e-05,2]
[355634414,1741415458386,-6843.09,8.493e-05,2]
[355634415,1741415458395,-6091.5,8.493e-05,2]
[355634416,1741415458404,-2774.12,8.493e-05,2]
[355634417,1741415458414,-500.0,8.493e-05,2]
[355634418,1741415458424,-4176.84,8.493e-05,2]
[355634419,1741415458433,-2574.66,8.493e-05,2]
[355634420,1741415458442,-1409.21,8.493e-05,2]
[355634421,1741415458452,-5001.65,8.493e-05,2]
[355634422,1741415458461,-1419.05,8.493e-05,2]
[355634423,1741415458471,-3021.28,8.493e-05,2]
[355634424,1741415458637,-3173.39,8.493e-05,2]
[355634425,1741415458646,-6245.34,8.493e-05,2]
[355634426,1741415458656,-500.0,8.493e-05,2]
[355634427,1741415458665,-500.0,8.493e-05,2]
[355634428,1741415458674,-438.07539443,8.493e-05,2]
[355634429,1741415458684,-7059.32,8.493e-05,2]
[355634430,1741415458693,-3059.77,8.493e-05,2]
[355634431,1741415458702,-500.0,8.493e-05,2]
[355634432,1741415458712,-500.0,8.493e-05,2]
[355634433,1741415458721,-1433.79,8.493e-05,2]
[355634434,1741415458731,-4414.79,8.493e-05,2]
[355634435,1741415458741,-500.0,8.493e-05,2]
[355634436,1741415458750,-1425.36,8.493e-05,2]
[355634437,1741415458759,-12606.08,8.493e-05,2]
[355634438,1741415458769,-1852.92,8.493e-05,2]
[355634439,1741415458778,-3453.69,8.493e-05,2]
[355634440,1741415458788,-3095.72,8.493e-05,2]
[355634441,1741415458797,-1749.87,8.493e-05,2]
[355634442,1741415458808,-500.0,8.493e-05,2]
[355634443,1741415458817,-500.0,8.493e-05,2]
[355634444,1741415458827,-805.36,8.493e-05,2]
[355634445,1741415458836,-500.0,8.493e-05,2]
[355634446,1741415458847,-544.41,8.493e-05,2]
[355634447,1741415458857,-4628.48,8.493e-05,2]
[355634448,1741415458868,-500.0,8.493e-05,2]
[355634449,1741415458878,-3544.33,8.493e-05,2]
[355634450,1741415458888,-2701.63,8.493e-05,2]
[355634451,1741415458897,-2676.68,8.493e-05,2]
[355634452,1741415458907,-1309.43,8.493e-05,2]
[355634453,1741415458916,-8175.26,8.493e-05,2]
[355634454,1741415458925,-500.0,8.493e-05,2]
[355634455,1741415458936,-585.68,8.493e-05,2]
[355634456,1741415458948,-500.0,8.493e-05,2]
[355634457,1741415458958,-500.0,8.493e-05,2]
[355634458,1741415458968,-1883.67,8.493e-05,2]
[355634459,1741415458978,-1821.39,8.493e-05,2]
[355634460,1741415458989,-7471.62,8.493e-05,2]
[355634461,1741415458999,-22922.78,8.493e-05,2]
[355634462,1741415459010,-4863.92,8.493e-05,2]
[355634463,1741415459021,-2120.52,8.493e-05,2]
[355634464,1741415459032,-4500.15,8.493e-05,2]
[355634465,1741415459041,-1304.75,8.493e-05,2]
[355634466,1741415459051,-500.0,8.493e-05,2]
[355634467,1741415459061,-1266.42,8.493e-05,2]
[355634468,1741415459072,-20303.18,8.493e-05,2]
[355634469,1741415459083,-3553.98,8.493e-05,2]
[355634470,1741415459094,-500.0,8.493e-05,2]
[355634471,1741415459106,-917.91,8.493e-05,2]
[355634472,1741415459119,-3984.05,8.493e-05,2]
[355634473,1741415459132,-2343.68,8.493e-05,2]
[355634474,1741415459142,-500.0,8.493e-05,2]
[355634475,1741415459152,-500.0,8.493e-05,2]
[355634476,1741415459163,-1457.39,8.493e-05,2]
[355634477,1741415459172,-567.07,8.493e-05,2]
[355634478,1741415459182,-3582.92,8.493e-05,2]
[355634479,1741415459193,-1154.71,8.493e-05,2]
[355634480,1741415459203,-6942.71,8.493e-05,2]
[355634481,1741415459213,-500.0,8.493e-05,2]
[355634482,1741415459223,-500.0,8.493e-05,2]
[355634483,1741415459233,-4770.21,8.493e-05,2]
[355634484,1741415459242,-1246.43,8.493e-05,2]
[355634485,1741415459252,-500.0,8.493e-05,2]
[355634486,1741415459262,-1104.03,8.493e-05,2]
[355634487,1741415459272,-2903.87,8.493e-05,2]
[355634488,1741415459281,-2310.17,8.493e-05,2]
[355634489,1741415459291,-1844.02,8.493e-05,2]
[355634490,1741415459300,-500.0,8.493e-05,2]
[355634491,1741415459310,-500.0,8.493e-05,2]
[355634492,1741415459319,-500.0,8.493e-05,2]
[355634493,1741415459328,-576.99,8.493e-05,2]
[355634494,1741415459337,-10659.78,8.493e-05,2]
[355634495,1741415459347,-500.0,8.493e-05,2]
[355634496,1741415459356,-500.0,8.493e-05,2]
[355634497,1741415459366,-1602.33,8.493e-05,2]
[355634498,1741415459375,-12151.98,8.493e-05,2]
[355634499,1741415459385,-1667.28,8.493e-05,2]
[355634500,1741415459394,-500.0,8.493e-05,2]
[355634501,1741415459403,-1511.56,8.493e-05,2]
[355634502,1741415459413,-503.06,8.493e-05,2]
[355634503,1741415459423,-895.23,8.493e-05,2]
[355634504,1741415459432,-26766.64,8.493e-05,2]
[355634505,1741415459441,-500.0,8.493e-05,2]
[355634506,1741415459451,-1065.27,8.493e-05,2]
[355634507,1741415459462,-825.69,8.493e-05,2]
[355634508,1741415459472,-8018.87,8.493e-05,2]
[355634509,1741415459481,-4164.61,8.493e-05,2]
[355634510,1741415459490,-2542.62,8.493e-05,2]
[355634511,1741415459499,-1577.24,8.493e-05,2]
[355634512,1741415459510,-500.0,8.493e-05,2]
[355634513,1741415459519,-3131.34,8.493e-05,2]
[355634514,1741415459528,-4425.22,8.493e-05,2]
[355634515,1741415459538,-1511.73,8.493e-05,2]
[355634516,1741415459547,-500.0,8.493e-05,2]
[355634517,1741415459557,-47766.9,8.493e-05,2]
[355634518,1741415459567,-500.0,8.493e-05,2]
[355634519,1741415459576,-500.0,8.493e-05,2]
[355634520,1741415459586,-1561.66,8.493e-05,2]
[355634521,1741415459596,-500.0,8.493e-05,2]
[355634522,1741415459605,-500.0,8.493e-05,2]
[355634523,1741415459615,-958.2,8.493e-05,2]
[355634524,1741415459625,-157.63,8.543e-05,2]
[355634525,1741415459634,-368.0,8.7e-05,2]
[355634526,1741415459644,-750.0,8.7e-05,2]
[355634527,1741415459653,-232.0,8.7e-05,2]
[355634528,1741415459663,-2217.37,8.766e-05,2]
[355634529,1741415459672,-150.0,8.766e-05,2]
[355634530,1741415459683,-359.551272,8.767e-05,2]
[355634531,1741415459692,-500.0,8.767e-05,2]
[355634532,1741415459702,-220.905378,8.767e-05,2]
[355634533,1741415459711,-500.0,8.767e-05,2]
[355634534,1741415459721,-896.35,8.767e-05,2]
[355634535,1741415459730,-500.0,8.767e-05,2]
[355634536,1741415459740,-722.9,8.767e-05,2]
[355634537,1741415459750,-1231.77,8.767e-05,2]
[355634538,1741415459759,-872.8,8.767e-05,2]
[355634539,1741415459769,-500.0,8.767e-05,2]
[355634540,1741415459778,-500.0,8.767e-05,2]
[355634541,1741415459788,-500.0,8.767e-05,2]
[355634542,1741415459798,-500.0,8.767e-05,2]
[355634543,1741415459808,-1492.14,8.767e-05,2]
[355634544,1741415459818,-1176.18,8.767e-05,2]
[355634545,1741415459828,-500.0,8.767e-05,2]
[355634546,1741415459837,-500.0,8.767e-05,2]
[355634547,1741415459847,-870.31,8.767e-05,2]
[355634548,1741415459856,-500.0,8.767e-05,2]
[355634549,1741415459866,-951.0,8.767e-05,2]
[355634550,1741415459875,-606.57,8.767e-05,2]
[355634551,1741415459885,-1396.19,8.767e-05,2]
[355634552,1741415459895,-643.70111815,8.767e-05,2]
[355634553,1741415459906,-999.63,8.767e-05,2]
[355634554,1741415459916,-500.0,8.767e-05,2]
[355634555,1741415459925,-209.29058834,8.767e-05,2]
[355634556,1741415459935,-388.84983211,8.767e-05,2]
[355634557,1741415459945,-810.48,8.767e-05,2]
[355634558,1741415459955,-500.0,8.767e-05,2]
[355634559,1741415459964,-500.0,8.767e-05,2]
[355634560,1741415459973,-500.0,8.767e-05,2]
[355634561,1741415459983,-500.0,8.767e-05,2]
[355634562,1741415459993,-500.0,8.767e-05,2]
[355634563,1741415460003,-1128.97,8.767e-05,2]
[355634564,1741415460013,-728.74,8.767e-05,2]
[355634565,1741415460023,-500.0,8.767e-05,2]
[355634566,1741415460032,-500.0,8.767e-05,2]
[355634567,1741415460042,-840.04,8.767e-05,2]
[355634568,1741415460052,-500.0,8.767e-05,2]
[355634569,1741415460062,-1260.5,8.767e-05,2]
[355634570,1741415460072,-1191.18,8.767e-05,2]
[355634571,1741415460082,-500.0,8.767e-05,2]
[355634572,1741415460094,-500.0,8.767e-05,2]
[355634573,1741415460104,-500.0,8.767e-05,2]
[355634574,1741415460114,-500.0,8.767e-05,2]
[355634575,1741415460127,-500.0,8.767e-05,2]
[355634576,1741415460138,-1104.84,8.767e-05,2]
[355634577,1741415460148,-556.66,8.767e-05,2]
[355634578,1741415460160,-500.0,8.767e-05,2]
[355634579,1741415460171,-515.06,8.767e-05,2]
[355634580,1741415460181,-500.0,8.767e-05,2]
[355634581,1741415460190,-500.0,8.767e-05,2]
[355634582,1741415460200,-500.0,8.767e-05,2]
[355634583,1741415460214,-500.0,8.767e-05,2]
[355634584,1741415460225,-525.11628676,8.767e-05,2]
[355634585,1741415460234,-500.0,8.767e-05,2]
[355634586,1741415460244,-500.0,8.767e-05,2]
[355634587,1741415460253,-500.0,8.767e-05,2]
[355634588,1741415460264,-500.0,8.767e-05,2]
[355634589,1741415460274,-500.0,8.767e-05,2]
[355634590,1741415460285,-500.0,8.767e-05,2]
[355634591,1741415460295,-706.14,8.767e-05,2]
[355634592,1741415460305,-500.0,8.767e-05,2]
[355634593,1741415460316,-500.0,8.767e-05,2]
[355634594,1741415460327,-500.0,8.767e-05,2]
[355634595,1741415460338,-637.26,8.767e-05,2]
[355634596,1741415460348,-500.0,8.767e-05,2]
[355634597,1741415460359,-500.0,8.767e-05,2]
[355634598,1741415460370,-1134.85,8.767e-05,2]
[355634599,1741415460381,-727.21,8.767e-05,2]
[355634600,1741415460394,-1090.69,8.767e-05,2]
[355634601,1741415460408,-500.0,8.767e-05,2]
[355634602,1741415460421,-583.27,8.767e-05,2]
[355634603,1741415460431,-1358.73,8.767e-05,2]
[355634604,1741415460442,-500.0,8.767e-05,2]
[355634605,1741415460452,-208.40125268,8.767e-05,2]
[355634606,1741415460462,-500.0,8.767e-05,2]
[355634607,1741415460473,-500.0,8.767e-05,2]
[355634608,1741415460484,-500.0,8.767e-05,2]
[355634609,1741415460494,-500.0,8.767e-05,2]
[355634610,1741415460504,-500.0,8.767e-05,2]
[355634611,1741415460514,-500.0,8.767e-05,2]
[355634612,1741415460523,-500.0,8.767e-05,2]
[355634613,1741415460532,-605.21,8.767e-05,2]
[355634614,1741415460541,-500.0,8.767e-05,2]
[355634615,1741415460551,-500.0,8.767e-05,2]
[355634616,1741415460562,-500.0,8.767e-05,2]
[355634617,1741415460572,-500.0,8.767e-05,2]
[355634618,1741415460581,-748.56,8.767e-05,2]
[355634619,1741415460591,-160.71418417,8.767e-05,2]
[355634620,1741415460601,-500.0,8.767e-05,2]
[355634621,1741415460611,-805.28,8.767e-05,2]
[355634622,1741415460621,-500.0,8.767e-05,2]
[355634623,1741415460631,-500.0,8.767e-05,2]
[355634624,1741415460643,-849.9,8.767e-05,2]
[355634625,1741415460653,-500.0,8.767e-05,2]
[355634626,1741415460670,-500.0,8.767e-05,2]
[355634627,1741415460680,-500.0,8.767e-05,2]
[355634628,1741415460691,-500.0,8.767e-05,2]
[355634629,1741415460702,-738.1,8.767e-05,2]
[355634630,1741415460713,-500.0,8.767e-05,2]
[355634631,1741415460724,-866.1,8.767e-05,2]
[355634632,1741415460734,-505.26,8.767e-05,2]
[355634633,1741415460744,-500.0,8.767e-05,2]
[355634634,1741415460755,-634.75177027,8.767e-05,2]
[355634635,1741415460764,-500.0,8.767e-05,2]
[355634636,1741415460774,-500.0,8.767e-05,2]
[355634637,1741415460783,-1594.4,8.767e-05,2]
[355634638,1741415460794,-500.0,8.767e-05,2]
[355634639,1741415460803,-500.0,8.767e-05,2]
[355634640,1741415460813,-500.0,8.767e-05,2]
[355634641,1741415460823,-500.0,8.767e-05,2]
[355634642,1741415460833,-500.0,8.767e-05,2]
[355634643,1741415460843,-2360.29,8.767e-05,2]
[355634644,1741415460853,-500.0,8.767e-05,2]
[355634645,1741415460863,-500.0,8.767e-05,2]
[355634646,1741415460873,-500.0,8.767e-05,2]
[355634647,1741415460884,-874.32,8.767e-05,2]
[355634648,1741415460894,-500.0,8.767e-05,2]
[355634649,1741415460905,-2019.32,8.767e-05,2]
[355634650,1741415460924,-905.05,8.767e-05,2]
[355634651,1741415461081,-500.0,8.767e-05,2]
[355634652,1741415461091,-500.0,8.767e-05,2]
[355634653,1741415461101,-500.0,8.767e-05,2]
[355634654,1741415461111,-500.0,8.767e-05,2]
[355634655,1741415461125,-500.0,8.767e-05,2]
[355634656,1741415461135,-1420.01,8.767e-05,2]
[355634657,1741415461145,-1478.89,8.767e-05,2]
[355634658,1741415461155,-500.0,8.767e-05,2]
[355634659,1741415461170,-1032.39,8.767e-05,2]
[355634660,1741415461179,-500.0,8.767e-05,2]
[355634661,1741415461189,-974.54,8.767e-05,2]
[355634662,1741415461199,-500.0,8.767e-05,2]
[355634663,1741415461210,-500.0,8.767e-05,2]
[355634664,1741415461221,-500.0,8.767e-05,2]
[355634665,1741415461232,-500.0,8.767e-05,2]
[355634666,1741415461242,-500.0,8.767e-05,2]
[355634667,1741415461252,-1371.19,8.767e-05,2]
[355634668,1741415461262,-500.0,8.767e-05,2]
[355634669,1741415461271,-500.0,8.767e-05,2]
[355634670,1741415461281,-1446.33,8.767e-05,2]
[355634671,1741415461291,-505.87,8.767e-05,2]
[355634672,1741415461301,-1772.86,8.767e-05,2]
[355634673,1741415461310,-500.0,8.767e-05,2]
[355634674,1741415461320,-500.0,8.767e-05,2]
[355634675,1741415461330,-1130.64,8.767e-05,2]
[355634676,1741415461340,-500.0,8.767e-05,2]
[355634677,1741415461350,-1523.51,8.767e-05,2]
[355634678,1741415461360,-618.72,8.767e-05,2]
[355634679,1741415461370,-2051.23,8.767e-05,2]
[355634680,1741415461379,-2066.5,8.767e-05,2]
[355634681,1741415461388,-958.95,8.767e-05,2]
[355634682,1741415461398,-500.0,8.767e-05,2]
[355634683,1741415461410,-1182.61,8.767e-05,2]
[355634684,1741415461420,-1228.55,8.767e-05,2]
[355634685,1741415461429,-1307.36,8.767e-05,2]
[355634686,1741415461439,-500.0,8.767e-05,2]
[355634687,1741415461449,-1157.02,8.767e-05,2]
[355634688,1741415461459,-500.0,8.767e-05,2]
[355634689,1741415461469,-1970.29,8.767e-05,2]
[355634690,1741415461479,-500.0,8.767e-05,2]
[355634691,1741415461489,-1287.32,8.767e-05,2]
[355634692,1741415461499,-500.0,8.767e-05,2]
[355634693,1741415461509,-418.84130379,8.767e-05,2]
[355634694,1741415461518,-1476.77,8.767e-05,2]
[355634695,1741415461528,-1699.58,8.767e-05,2]
[355634696,1741415461537,-500.0,8.767e-05,2]
[355634697,1741415461547,-977.07,8.767e-05,2]
[355634698,1741415461557,-500.0,8.767e-05,2]
[355634699,1741415461567,-1090.37,8.767e-05,2]
[355634700,1741415461576,-1081.12,8.767e-05,2]
[355634701,1741415461586,-1461.98,8.767e-05,2]
[355634702,1741415461595,-500.0,8.767e-05,2]
[355634703,1741415461605,-500.94,8.767e-05,2]
[355634704,1741415461615,-1408.08,8.767e-05,2]
[355634705,1741415461624,-500.0,8.767e-05,2]
[355634706,1741415461634,-500.0,8.767e-05,2]
[355634707,1741415461643,-500.0,8.767e-05,2]
[355634708,1741415461653,-1295.82,8.767e-05,2]
[355634709,1741415461666,-1037.67,8.767e-05,2]
[355634710,1741415461676,-1058.41,8.767e-05,2]
[355634711,1741415461685,-500.0,8.767e-05,2]
[355634712,1741415461695,-1048.47,8.767e-05,2]
[355634713,1741415461705,-500.0,8.767e-05,2]
[355634714,1741415461714,-997.21,8.767e-05,2]
[355634715,1741415461724,-739.48,8.767e-05,2]
[355634716,1741415461733,-1565.81,8.767e-05,2]
[355634717,1741415461743,-876.41,8.767e-05,2]
[355634718,1741415461752,-962.57,8.767e-05,2]
[355634719,1741415461762,-1054.35,8.767e-05,2]
[355634720,1741415461771,-500.0,8.767e-05,2]
[355634721,1741415461781,-575.4,8.767e-05,2]
[355634722,1741415461791,-723.79,8.767e-05,2]
[355634723,1741415461801,-1813.71,8.767e-05,2]
[355634724,1741415461811,-1131.98,8.767e-05,2]
[355634725,1741415461821,-865.24,8.767e-05,2]
[355634726,1741415461830,-812.66,8.767e-05,2]
[355634727,1741415461840,-500.0,8.767e-05,2]
[355634728,1741415461850,-500.0,8.767e-05,2]
[355634729,1741415461860,-500.0,8.767e-05,2]
[355634730,1741415461869,-1408.64,8.767e-05,2]
[355634731,1741415461879,-2138.86,8.767e-05,2]
[355634732,1741415461889,-500.0,8.767e-05,2]
[355634733,1741415461898,-500.0,8.767e-05,2]
[355634734,1741415461910,-500.0,8.767e-05,2]
[355634735,1741415461920,-500.0,8.767e-05,2]
[355634736,1741415461929,-1013.52,8.767e-05,2]
[355634737,1741415461939,-904.8,8.767e-05,2]
[355634738,1741415461948,-500.0,8.767e-05,2]
[355634739,1741415461957,-1485.4,8.767e-05,2]
[355634740,1741415461966,-1115.3,8.767e-05,2]
[355634741,1741415461975,-1108.5,8.767e-05,2]
[355634742,1741415461985,-2085.13,8.767e-05,2]
[355634743,1741415461994,-1126.24,8.767e-05,2]
[355634744,1741415462003,-938.83,8.767e-05,2]
[355634745,1741415462013,-500.0,8.767e-05,2]
[355634746,1741415462023,-1313.83,8.767e-05,2]
[355634747,1741415462033,-500.0,8.767e-05,2]
[355634748,1741415462043,-1289.8,8.767e-05,2]
[355634749,1741415462052,-585.0,8.767e-05,2]
[355634750,1741415462062,-500.0,8.767e-05,2]
[355634751,1741415462071,-500.0,8.767e-05,2]
[355634752,1741415462080,-861.82,8.767e-05,2]
[355634753,1741415462090,-1728.17,8.767e-05,2]
[355634754,1741415462099,-1095.5,8.767e-05,2]
[355634755,1741415462108,-1162.87,8.767e-05,2]
[355634756,1741415462119,-249.65975028,8.767e-05,2]
[355634757,1741415462129,-1586.63,8.767e-05,2]
[355634758,1741415462141,-854.02,8.767e-05,2]
[355634759,1741415462150,-500.0,8.767e-05,2]
[355634760,1741415462164,-1056.63,8.767e-05,2]
[355634761,1741415462174,-1453.83,8.767e-05,2]
[355634762,1741415462184,-2591.29,8.767e-05,2]
[355634763,1741415462193,-738.99,8.767e-05,2]
[355634764,1741415462203,-1832.64,8.767e-05,2]
[355634765,1741415462215,-535.93548455,8.767e-05,2]
[355634766,1741415462225,-1489.91,8.767e-05,2]
[355634767,1741415462235,-519.88053331,8.767e-05,2]
[355634768,1741415462245,-1930.23,8.767e-05,2]
[355634769,1741415462255,-500.0,8.767e-05,2]
[355634770,1741415462264,-500.0,8.767e-05,2]
[355634771,1741415462274,-500.0,8.767e-05,2]
[355634772,1741415462283,-1341.13,8.767e-05,2]
[355634773,1741415462292,-678.84,8.767e-05,2]
[355634774,1741415462302,-687.43,8.767e-05,2]
[355634775,1741415462312,-714.89,8.767e-05,2]
[355634776,1741415462321,-500.0,8.767e-05,2]
[355634777,1741415462331,-1321.91,8.767e-05,2]
[355634778,1741415462341,-776.95,8.767e-05,2]
[355634779,1741415462351,-500.0,8.767e-05,2]
[355634780,1741415462360,-500.0,8.767e-05,2]
[355634781,1741415462370,-652.15,8.767e-05,2]
[355634782,1741415462379,-1078.6,8.767e-05,2]
[355634783,1741415462389,-500.0,8.767e-05,2]
[355634784,1741415462399,-500.0,8.767e-05,2]
[355634785,1741415462411,-2014.94,8.767e-05,2]
[355634786,1741415462422,-2331.51,8.767e-05,2]
[355634787,1741415462432,-524.16,8.767e-05,2]
[355634788,1741415462442,-500.0,8.767e-05,2]
[355634789,1741415462453,-1353.14,8.767e-05,2]
[355634790,1741415462463,-500.0,8.767e-05,2]
[355634791,1741415462474,-1839.69,8.767e-05,2]
[355634792,1741415462483,-500.0,8.767e-05,2]
[355634793,1741415462494,-1831.42,8.767e-05,2]
[355634794,1741415462503,-681.8,8.767e-05,2]
[355634795,1741415462513,-1436.74,8.767e-05,2]
[355634796,1741415462523,-500.0,8.767e-05,2]
[355634797,1741415462533,-500.0,8.767e-05,2]
[355634798,1741415462544,-500.0,8.767e-05,2]
[355634799,1741415462554,-636.4,8.767e-05,2]
[355634800,1741415462563,-500.0,8.767e-05,2]
[355634801,1741415462573,-2944.05,8.767e-05,2]
[355634802,1741415462582,-500.0,8.767e-05,2]
[355634803,1741415462592,-1590.94,8.767e-05,2]
[355634804,1741415462602,-2008.55,8.767e-05,2]
[355634805,1741415462611,-1074.43,8.767e-05,2]
[355634806,1741415462621,-1164.62,8.767e-05,2]
[355634807,1741415462631,-1037.84,8.767e-05,2]
[355634808,1741415462640,-500.0,8.767e-05,2]
[355634809,1741415462651,-1193.58,8.767e-05,2]
[355634810,1741415462660,-1729.29,8.767e-05,2]
[355634811,1741415462670,-500.0,8.767e-05,2]
[355634812,1741415462679,-954.55,8.767e-05,2]
[355634813,1741415462689,-500.0,8.767e-05,2]
[355634814,1741415462699,-2173.87,8.767e-05,2]
[355634815,1741415462709,-1819.27,8.767e-05,2]
[355634816,1741415462719,-987.12,8.767e-05,2]
[355634817,1741415462729,-500.0,8.767e-05,2]
[355634818,1741415462739,-500.0,8.767e-05,2]
[355634819,1741415462748,-500.0,8.767e-05,2]
[355634820,1741415462760,-500.0,8.767e-05,2]
[355634821,1741415462770,-559.5,8.767e-05,2]
[355634822,1741415462782,-1471.77,8.767e-05,2]
[355634823,1741415462792,-500.0,8.767e-05,2]
[355634824,1741415462803,-500.0,8.767e-05,2]
[355634825,1741415462814,-500.0,8.767e-05,2]
[355634826,1741415462826,-1033.5,8.767e-05,2]
[355634827,1741415462835,-846.47,8.767e-05,2]
[355634828,1741415462844,-1328.66,8.767e-05,2]
[355634829,1741415462854,-500.0,8.767e-05,2]
[355634830,1741415462863,-500.0,8.767e-05,2]
[355634831,1741415462872,-1241.21,8.767e-05,2]
[355634832,1741415462882,-500.0,8.767e-05,2]
[355634833,1741415462891,-1868.79,8.767e-05,2]
[355634834,1741415462901,-500.0,8.767e-05,2]
[355634835,1741415462912,-961.1,8.767e-05,2]
[355634836,1741415462924,-2005.91,8.767e-05,2]
[355634837,1741415462933,-566.81016827,8.767e-05,2]
[355634838,1741415462942,-1092.76,8.767e-05,2]
[355634839,1741415462951,-734.24,8.767e-05,2]
[355634840,1741415462962,-860.81,8.767e-05,2]
[355634841,1741415462971,-593.95,8.767e-05,2]
[355634842,1741415462981,-997.96,8.767e-05,2]
[355634843,1741415462991,-718.61,8.767e-05,2]
[355634844,1741415463000,-946.28,8.767e-05,2]
[355634845,1741415463010,-887.72,8.767e-05,2]
[355634846,1741415463020,-919.47,8.767e-05,2]
[355634847,1741415463030,-500.0,8.767e-05,2]
[355634848,1741415463040,-1346.89,8.767e-05,2]
[355634849,1741415463049,-500.0,8.767e-05,2]
[355634850,1741415463059,-1480.65,8.767e-05,2]
[355634851,1741415463068,-2362.78,8.767e-05,2]
[355634852,1741415463078,-844.68,8.767e-05,2]
[355634853,1741415463087,-2350.07,8.767e-05,2]
[355634854,1741415463097,-1267.71,8.767e-05,2]
[355634855,1741415463107,-1591.82,8.767e-05,2]
[355634856,1741415463118,-771.38,8.767e-05,2]
[355634857,1741415463129,-2644.39,8.767e-05,2]
[355634858,1741415463143,-571.84,8.767e-05,2]
[355634859,1741415463153,-500.0,8.767e-05,2]
[355634860,1741415463165,-922.37,8.767e-05,2]
[355634861,1741415463321,-500.0,8.767e-05,2]
[355634862,1741415463332,-702.81,8.767e-05,2]
[355634863,1741415463342,-500.0,8.767e-05,2]
[355634864,1741415463351,-500.0,8.767e-05,2]
[355634865,1741415463361,-716.66,8.767e-05,2]
[355634866,1741415463371,-893.22,8.767e-05,2]
[355634867,1741415463381,-1265.39,8.767e-05,2]
[355634868,1741415463391,-500.0,8.767e-05,2]
[355634869,1741415463401,-2567.13,8.767e-05,2]
[355634870,1741415463412,-500.0,8.767e-05,2]
[355634871,1741415463422,-1546.39,8.767e-05,2]
[355634872,1741415463431,-500.0,8.767e-05,2]
[355634873,1741415463441,-500.0,8.767e-05,2]
[355634874,1741415463450,-602.21,8.767e-05,2]
[355634875,1741415463460,-2104.25,8.767e-05,2]
[355634876,1741415463469,-851.16,8.767e-05,2]
[355634877,1741415463479,-1599.35,8.767e-05,2]